bitfinex-derivatives/quotes_BTCF0:USTF0_20251002
["timestamp","ask_amount","ask_price","bid_price","bid_amount"]
[1759370058187,2.01925924,118820.0,118810.0,0.02155]
[1759370058490,1.22813924,118820.0,118810.0,0.02155]
[1759370058786,2.01913924,118820.0,118810.0,0.02155]
[1759370060080,1.6489201,118820.0,118810.0,0.04346]
[1759370060286,2.01913924,118820.0,118810.0,0.02155]
[1759370060788,0.3738,118820.0,118810.0,0.49780624]
[1759370060990,0.013,118820.0,118810.0,0.95820063]
[1759370061282,0.4449132,118830.0,118820.0,0.11991]
[1759370061489,1.2356332,118830.0,118820.0,0.18018948]
[1759370062482,0.4609132,118830.0,118820.0,0.18018948]
[1759370062683,1.251633,118830.0,118820.0,0.19118948]
[1759370062884,0.80672,118830.0,118820.0,0.19118948]
[1759370063085,0.79072,118830.0,118820.0,0.18018948]
[1759370063281,0.79072,118830.0,118820.0,0.19818948]
[1759370063982,0.79072,118830.0,118820.0,0.18018948]
[1759370064185,0.79372,118830.0,118820.0,0.18018948]
[1759370064389,0.087113,118830.0,118820.0,0.18018948]
[1759370064592,1.24805214,118830.0,118820.0,0.07415948]
[1759370064796,1.60885214,118830.0,118820.0,0.01388]
[1759370064984,0.81813214,118830.0,118820.0,0.0352]
[1759370065190,1.60953214,118830.0,118820.0,0.0352]
[1759370065386,0.3638,118830.0,118820.0,0.1193201]
[1759370065586,0.92479156,118840.0,118830.0,0.118533]
[1759370065887,1.71663156,118840.0,118830.0,0.03442]
[1759370067089,1.71663156,118840.0,118830.0,0.0281]
[1759370067393,0.55457242,118840.0,118830.0,0.133533]
[1759370067594,1.71675156,118840.0,118830.0,0.133533]
[1759370067892,1.72275156,118840.0,118830.0,0.118533]
[1759370068492,0.93079156,118840.0,118830.0,0.118533]
[1759370068794,0.92779156,118840.0,118830.0,0.118533]
[1759370068992,1.71951156,118840.0,118830.0,0.118533]
[1759370069196,0.92479156,118840.0,118830.0,0.136533]
[1759370069396,1.71643156,118840.0,118830.0,0.136533]
[1759370070292,1.71643156,118840.0,118830.0,0.133533]
[1759370070993,1.72243156,118840.0,118830.0,0.118533]
[1759370071792,1.72175156,118840.0,118830.0,0.118533]
[1759370073298,1.72175156,118840.0,118830.0,0.03442]
[1759370074396,1.72147156,118840.0,118830.0,0.03442]
[1759370075304,1.72147156,118840.0,118830.0,0.118533]
[1759370075998,0.93079156,118840.0,118830.0,0.118533]
[1759370076197,1.72143156,118840.0,118830.0,0.118533]
[1759370076391,0.93079156,118840.0,118830.0,0.118533]
[1759370076794,1.72143156,118840.0,118830.0,0.118533]
[1759370076993,0.93079156,118840.0,118830.0,0.118533]
[1759370077201,0.92779156,118840.0,118830.0,0.118533]
[1759370077405,0.92779156,118840.0,118830.0,0.136533]
[1759370077898,1.71543156,118840.0,118830.0,0.118533]
[1759370078096,0.92779156,118840.0,118830.0,0.118533]
[1759370078498,1.34821242,118840.0,118830.0,0.118533]
[1759370078696,1.71843156,118840.0,118830.0,0.118533]
[1759370078892,1.71543156,118840.0,118830.0,0.133533]
[1759370079101,1.71542816,118840.0,118830.0,0.19381248]
[1759370079405,1.34520902,118840.0,118830.0,0.17881248]
[1759370079601,1.72142816,118840.0,118830.0,0.09469948]
[1759370079898,1.72142816,118840.0,118830.0,0.03442]
[1759370080102,1.71542816,118840.0,118830.0,0.0311]
[1759370080704,1.71542816,118840.0,118830.0,0.0281]
[1759370084909,1.34520902,118840.0,118830.0,0.04942]
[1759370085109,1.71542816,118840.0,118830.0,0.04942]
[1759370085809,1.71542816,118840.0,118830.0,0.133533]
[1759370086206,1.34520902,118840.0,118830.0,0.133533]
[1759370086509,1.71542816,118840.0,118830.0,0.04942]
[1759370086709,1.71542816,118840.0,118830.0,0.0281]
[1759370088602,2.0856473,118840.0,118830.0,0.015]
[1759370088807,0.084113,118830.0,118820.0,0.01388]
[1759370089007,0.81513214,118830.0,118820.0,0.01388]
[1759370089917,0.82113214,118830.0,118820.0,0.02888]
[1759370090311,1.00637036,118830.0,118820.0,0.01388]
[1759370090524,1.00037036,118830.0,118820.0,0.02488]
[1759370091723,1.00937036,118830.0,118820.0,0.01388]
[1759370092526,0.453913,118830.0,118820.0,0.01388]
[1759370092727,1.00937036,118830.0,118820.0,0.01388]
[1759370094435,0.453913,118830.0,118820.0,0.01388]
[1759370094622,1.00937036,118830.0,118820.0,0.01388]
[1759370095124,1.52216168,118830.0,118820.0,0.03614]
[1759370096225,1.244433,118830.0,118820.0,0.03614]
[1759370096628,1.52216168,118830.0,118820.0,0.03614]
[1759370097930,0.3698,118830.0,118820.0,0.53698276]
[1759370098127,1.244433,118830.0,118820.0,0.53698276]
[1759370098329,1.52216168,118830.0,118820.0,0.81471144]
[1759370098528,1.244433,118830.0,118820.0,0.53698276]
[1759370098723,1.52216168,118830.0,118820.0,0.73059144]
[1759370099023,1.244433,118830.0,118820.0,0.81471144]
[1759370099231,1.244433,118830.0,118820.0,0.53698276]
[1759370099429,1.244433,118830.0,118820.0,0.81471144]
[1759370099729,1.52216168,118830.0,118820.0,0.81471144]
[1759370100128,1.52216168,118830.0,118820.0,0.53698276]
[1759370100330,1.52216168,118830.0,118820.0,0.81471144]
[1759370100730,1.43804868,118830.0,118820.0,0.87499092]
[1759370101029,1.41427592,118830.0,118820.0,0.87499092]
[1759370101629,1.49838892,118830.0,118820.0,0.87499092]
[1759370101820,1.49838892,118830.0,118820.0,0.11314224]
[1759370102018,1.22366024,118830.0,118820.0,0.11314224]
[1759370102325,1.50138892,118830.0,118820.0,0.11314224]
[1759370103035,1.7791176,118830.0,118820.0,0.11314224]
[1759370103227,1.7791176,118830.0,118820.0,0.03060276]
[1759370103422,1.50138892,118830.0,118820.0,0.03060276]
[1759370103628,1.7791176,118830.0,118820.0,0.03060276]
[1759370103829,2.1791176,118830.0,118820.0,0.01672276]
[1759370104026,2.1791176,118830.0,118810.0,0.01355]
[1759370104229,0.4449201,118820.0,118810.0,0.01355]
[1759370104734,1.00037746,118820.0,118810.0,0.01355]
[1759370105432,1.00037746,118820.0,118810.0,0.03581]
[1759370105636,1.79329746,118820.0,118810.0,0.05081]
[1759370106137,1.79329746,118820.0,118810.0,0.11108948]
[1759370106540,1.00037746,118820.0,118810.0,0.11108948]
[1759370106739,1.79449746,118820.0,118810.0,0.11108948]
[1759370107237,0.4509201,118820.0,118810.0,0.45794526]
[1759370107436,0.72864878,118820.0,118810.0,0.45794526]
[1759370107633,1.52260878,118820.0,118810.0,0.45794526]
[1759370108836,1.2448801,118820.0,118810.0,0.45794526]
[1759370109143,1.52260878,118820.0,118810.0,0.45794526]
[1759370109642,1.2448801,118820.0,118810.0,0.45794526]
[1759370109942,1.52260878,118820.0,118810.0,0.45794526]
[1759370110142,1.52260878,118820.0,118810.0,0.37381816]
[1759370110343,1.80033746,118820.0,118810.0,0.09608948]
[1759370110645,1.52260878,118820.0,118810.0,0.09608948]
[1759370111044,1.52260878,118820.0,118810.0,0.37381816]
[1759370111246,1.80033746,118820.0,118810.0,0.07382948]
[1759370112146,1.80033746,118820.0,118810.0,0.09608948]
[1759370112341,1.52260878,118820.0,118810.0,0.09608948]
[1759370112540,1.52260878,118820.0,118810.0,0.37381816]
[1759370112736,1.80033746,118820.0,118810.0,0.09608948]
[1759370113539,1.80033746,118820.0,118810.0,0.31353868]
[1759370114039,1.2448801,118820.0,118810.0,0.03581]
[1759370114341,1.80033746,118820.0,118810.0,0.03581]
[1759370114641,1.80033746,118820.0,118810.0,0.09608948]
[1759370115245,1.2448801,118820.0,118810.0,0.09608948]
[1759370115547,1.80033746,118820.0,118810.0,0.09608948]
[1759370115742,1.2448801,118820.0,118810.0,0.09608948]
[1759370116041,1.80033746,118820.0,118810.0,0.09608948]
[1759370116549,1.00637746,118820.0,118810.0,0.09608948]
[1759370116738,1.80233746,118820.0,118810.0,0.09608948]
[1759370116937,1.80233746,118820.0,118810.0,0.18021658]
[1759370118541,0.4509201,118820.0,118810.0,0.45794526]
[1759370118738,1.80169746,118820.0,118810.0,0.45794526]
[1759370119134,1.78802125,118820.0,118810.0,0.09608948]
[1759370119344,1.78802125,118820.0,118810.0,0.37381816]
[1759370119745,1.78802125,118820.0,118810.0,0.09608948]
[1759370121842,1.78802125,118820.0,118810.0,0.37381816]
[1759370123646,0.99270125,118820.0,118810.0,0.45794526]
[1759370123847,1.78706125,118820.0,118810.0,0.45794526]
[1759370125050,1.23160389,118820.0,118810.0,0.45794526]
[1759370125548,1.78706125,118820.0,118810.0,0.45794526]
[1759370127252,1.78706125,118820.0,118810.0,0.18021658]
[1759370130057,1.23160389,118820.0,118810.0,0.18021658]
[1759370130251,1.78706125,118820.0,118810.0,0.18021658]
[1759370130448,1.78706125,118820.0,118810.0,0.09608948]
[1759370133143,1.50673257,118820.0,118810.0,0.37381816]
[1759370133347,0.43724389,118820.0,118810.0,0.45794526]
[1759370133554,1.22884389,118820.0,118810.0,0.85794526]
[1759370133754,1.20506875,118820.0,118810.0,0.85794526]
[1759370134056,0.05266875,118820.0,118810.0,0.85794526]
[1759370134243,0.84430875,118820.0,118810.0,0.79766578]
[1759370134644,0.84430875,118820.0,118810.0,1.15846578]
[1759370134849,0.84430875,118820.0,118810.0,1.23391251]
[1759370135045,0.84430875,118820.0,118810.0,1.15846578]
[1759370135251,0.84430875,118820.0,118810.0,0.94112179]
[1759370135452,0.84430875,118820.0,118810.0,1.21885047]
[1759370135652,0.84430875,118820.0,118810.0,0.8807371]
[1759370135853,0.79736,118820.0,118810.0,1.15846578]
[1759370136747,0.88148,118820.0,118810.0,0.5199371]
[1759370136951,0.36784868,118820.0,118810.0,0.85804012]
[1759370137158,1.15920868,118820.0,118810.0,0.79766578]
[1759370137660,0.88148,118820.0,118810.0,0.79766578]
[1759370138062,1.15920868,118820.0,118810.0,0.79766578]
[1759370139462,1.15920868,118820.0,118810.0,0.45804012]
[1759370139759,1.15920868,118820.0,118810.0,0.81884012]
[1759370139954,1.15920868,118820.0,118810.0,0.75846578]
[1759370140156,1.15920868,118820.0,118810.0,0.81881801]
[1759370140355,0.88148,118820.0,118810.0,0.81881801]
[1759370142764,0.88148,118820.0,118810.0,0.54108933]
[1759370142965,0.88148,118820.0,118810.0,0.81881801]
[1759370143760,0.8678051,118820.0,118810.0,0.75846578]
[1759370144766,1.14553378,118820.0,118810.0,0.75846578]
[1759370145566,0.8673651,118820.0,118810.0,0.75846578]
[1759370145766,0.8673651,118820.0,118810.0,0.4807371]
[1759370146064,0.8673651,118820.0,118810.0,0.75846578]
[1759370149163,0.85726671,118820.0,118810.0,0.83391251]
[1759370150265,0.85726671,118820.0,118810.0,0.85095963]
[1759370150566,0.85726671,118820.0,118810.0,0.4807371]
[1759370150757,1.58828924,118820.0,118810.0,0.03581]
[1759370150954,1.58828924,118820.0,118810.0,0.09614938]
[1759370151166,1.58828924,118820.0,118810.0,0.03581]
[1759370151468,1.58828924,118820.0,118810.0,0.09615097]
[1759370151761,1.98828924,118820.0,118810.0,0.07389097]
[1759370152558,1.61806671,118820.0,118810.0,0.07389097]
[1759370152769,1.98828924,118820.0,118810.0,0.07389097]
[1759370154361,1.19736924,118820.0,118810.0,0.18055807]
[1759370154568,1.20427008,118820.0,118810.0,0.5507806]
[1759370155756,1.20427008,118820.0,118810.0,0.18055807]
[1759370157666,0.41347008,118820.0,118810.0,0.18055807]
[1759370157970,1.20427008,118820.0,118810.0,0.18055807]
[1759370159673,0.84347008,118820.0,118810.0,0.18055807]
[1759370159973,0.84347008,118820.0,118810.0,0.5507806]
[1759370160675,0.84347008,118820.0,118810.0,0.18055807]
[1759370160870,0.84347008,118820.0,118810.0,0.5507806]
[1759370161071,0.05267008,118820.0,118810.0,0.5507806]
[1759370161372,0.84347008,118820.0,118810.0,0.09643097]
[1759370161669,0.84347008,118820.0,118810.0,0.4666535]
[1759370161974,0.84347008,118820.0,118810.0,0.09643097]
[1759370162272,1.21369261,118820.0,118810.0,0.07389097]
[1759370162475,1.57449261,118820.0,118810.0,0.07389097]
[1759370162771,1.57449261,118820.0,118810.0,0.09643097]
[1759370162966,1.57449261,118820.0,118810.0,0.06034097]
[1759370163173,0.0841555,118770.0,118760.0,0.56394303]
[1759370163369,1.23503674,118770.0,118760.0,0.03568]
[1759370163575,1.59583674,118770.0,118760.0,0.01314]
[1759370163769,1.29697904,118770.0,118760.0,0.01314]
[1759370163965,2.08773904,118770.0,118760.0,0.01314]
[1759370164168,2.08773904,118770.0,118760.0,0.03568]
[1759370164369,1.71751651,118770.0,118760.0,0.03568]
[1759370164569,2.08773904,118770.0,118760.0,0.03568]
[1759370164767,2.08773904,118770.0,118760.0,0.06568]
[1759370164965,2.08773904,118770.0,118760.0,0.07568]
[1759370165173,2.08773904,118770.0,118760.0,0.05314]
[1759370166781,2.08773904,118770.0,118760.0,0.04033]
[1759370167480,1.29697904,118770.0,118760.0,0.04033]
[1759370167681,3.79501904,118770.0,118760.0,0.04033]
[1759370168276,1.29697904,118770.0,118760.0,0.04033]
[1759370168580,4.16528157,118770.0,118760.0,0.04033]
[1759370168788,4.16528157,118770.0,118740.0,0.01281]
[1759370168789,0.0841696,118750.0,118740.0,0.03535]
[1759370168977,1.60603213,118750.0,118740.0,0.01281]
[1759370169177,0.4449696,118750.0,118740.0,0.01281]
[1759370169380,1.60603213,118750.0,118740.0,0.01281]
[1759370169580,2.00603213,118750.0,118740.0,0.01281]
[1759370169983,2.36683213,118750.0,118740.0,0.01281]
[1759370170287,1.57599213,118750.0,118740.0,0.01281]
[1759370170480,4.07419213,118750.0,118740.0,0.01281]
[1759370170881,4.07419213,118750.0,118740.0,0.01981]
[1759370171183,1.58899213,118750.0,118740.0,0.01981]
[1759370171381,4.08731213,118750.0,118740.0,0.01981]
[1759370172182,3.7170896,118750.0,118740.0,0.01981]
[1759370172381,4.08731213,118750.0,118740.0,0.01981]
[1759370174886,3.7170896,118750.0,118740.0,0.01981]
[1759370175079,4.08731213,118750.0,118740.0,0.01981]
[1759370175274,0.0841838,118730.0,118720.0,0.0058693]
[1759370175482,1.60620633,118730.0,118720.0,0.0058693]
[1759370175986,1.67386885,118730.0,118720.0,0.0058693]
[1759370176183,0.88286885,118730.0,118720.0,0.1126002]
[1759370176390,5.93e-05,118730.0,118720.0,1.24362273]
[1759370176591,0.7910993,118730.0,118720.0,1.33751162]
[1759370177488,0.7910993,118730.0,118720.0,1.35351162]
[1759370177687,0.0040593,118730.0,118720.0,1.35351162]
[1759370177987,0.5745793,118730.0,118720.0,1.72373415]
[1759370178189,0.5745793,118730.0,118720.0,1.35351162]
[1759370178589,5.93e-05,118730.0,118720.0,1.35453154]
[1759370178987,0.3298993,118730.0,118720.0,1.37153154]
[1759370179188,0.0020593,118730.0,118720.0,1.37153154]
[1759370179383,0.0020593,118730.0,118720.0,1.00130901]
[1759370179589,0.0020593,118730.0,118720.0,0.97153154]
[1759370179788,0.3317793,118730.0,118720.0,0.97153154]
[1759370181189,0.78618563,118730.0,118720.0,0.60130901]
[1759370181389,1.14698563,118730.0,118720.0,0.0454093]
[1759370181696,0.85964403,118730.0,118720.0,0.1296002]
[1759370181993,0.85964403,118730.0,118720.0,0.49982273]
[1759370182487,0.85964403,118730.0,118720.0,0.1296002]
[1759370183196,0.94382783,118730.0,118720.0,0.0228693]
[1759370183384,0.88381036,118730.0,118720.0,0.1302402]
[1759370183588,1.67485036,118730.0,118720.0,0.1302402]
[1759370183783,0.51358783,118730.0,118720.0,0.1302402]
[1759370183988,0.94382783,118730.0,118720.0,0.1302402]
[1759370184194,1.31405036,118730.0,118720.0,0.1302402]
[1759370184902,0.52301036,118730.0,118720.0,0.1302402]
[1759370185092,1.31409036,118730.0,118720.0,0.1302402]
[1759370185297,0.94386783,118730.0,118720.0,0.1302402]
[1759370185504,0.06860403,118730.0,118720.0,0.1302402]
[1759370185703,0.85968403,118730.0,118720.0,0.86126273]
[1759370186402,0.85968403,118730.0,118720.0,0.4910402]
[1759370186602,0.06860403,118730.0,118720.0,0.4910402]
[1759370186904,0.85968403,118730.0,118720.0,0.4910402]
[1759370187298,0.85968403,118730.0,118720.0,0.86126273]
[1759370187797,0.94386783,118730.0,118720.0,0.86126273]
[1759370188403,0.94386783,118730.0,118720.0,0.1302402]
[1759370188807,0.85968403,118730.0,118720.0,0.1302402]
[1759370190006,0.06660403,118730.0,118720.0,0.48946273]
[1759370190207,0.87064403,118730.0,118720.0,0.48946273]
[1759370191010,0.87064403,118730.0,118720.0,0.48346273]
[1759370191212,0.87064403,118730.0,118720.0,0.1132402]
[1759370191412,0.87064403,118730.0,118720.0,0.48346273]
[1759370192909,0.0130593,118730.0,118720.0,0.84426273]
[1759370193102,0.0130593,118730.0,118720.0,1.72675686]
[1759370193308,0.8040593,118730.0,118720.0,1.35653433]
[1759370193706,0.0130593,118730.0,118720.0,1.72675686]
[1759370193903,0.92959571,118770.0,118760.0,0.03626]
[1759370194110,1.74309644,118770.0,118760.0,0.1204225]
[1759370194509,1.72058476,118770.0,118760.0,0.1204225]
[1759370195109,1.72058476,118770.0,118760.0,0.03626]
[1759370196008,0.55936223,118770.0,118760.0,0.1204226]
[1759370196203,0.98952223,118770.0,118760.0,0.1204226]
[1759370196411,0.1019023,118770.0,118760.0,0.90164513]
[1759370196610,0.80092,118770.0,118760.0,1.35550121]
[1759370197512,0.79092,118770.0,118760.0,1.36150121]
[1759370197703,0.8760755,118770.0,118760.0,1.36150121]
[1759370199113,0.79092,118770.0,118760.0,1.36150121]
[1759370199515,0.8750755,118770.0,118760.0,0.94450121]
[1759370199923,0.8780755,118770.0,118760.0,0.94450121]
[1759370200414,0.8780755,118770.0,118760.0,0.57427868]
[1759370200615,0.8780755,118770.0,118760.0,0.94450121]
[1759370200814,0.8780755,118770.0,118760.0,0.57427868]
[1759370201015,0.8780755,118770.0,118760.0,0.94450121]
[1759370201215,0.8780755,118770.0,118760.0,0.57427868]
[1759370201610,0.8780755,118770.0,118760.0,0.94450121]
[1759370201810,1.24829803,118770.0,118760.0,0.49011608]
[1759370202014,1.60909803,118770.0,118760.0,0.03626]
[1759370202216,1.2388755,118770.0,118760.0,0.03626]
[1759370202415,1.60909803,118770.0,118760.0,0.03626]
[1759370202815,0.81817803,118770.0,118760.0,0.03626]
[1759370203010,1.2386755,118770.0,118760.0,0.1204225]
[1759370203217,0.8778755,118770.0,118760.0,0.03626]
[1759370203418,1.2386755,118770.0,118760.0,0.03626]
[1759370204122,1.2386755,118770.0,118760.0,0.1204225]
[1759370204321,0.4479555,118770.0,118760.0,0.1204225]
[1759370204622,0.8778355,118770.0,118760.0,0.1204225]
[1759370205022,0.0871555,118770.0,118760.0,0.1204225]
[1759370205224,0.8778355,118770.0,118760.0,0.1204225]
[1759370205616,0.8778355,118770.0,118760.0,0.49064503]
[1759370206013,0.8778355,118770.0,118760.0,0.40648253]
[1759370206923,0.8778355,118770.0,118760.0,0.49064503]
[1759370207318,0.8778355,118770.0,118760.0,0.1204225]
[1759370207518,0.0871555,118770.0,118760.0,0.1204225]
[1759370207719,0.8777955,118770.0,118760.0,0.1204225]
[1759370209323,1.2385955,118770.0,118760.0,0.40648253]
[1759370209524,1.2385955,118770.0,118760.0,0.03626]
[1759370211026,1.2385155,118770.0,118760.0,0.01308]
[1759370211428,1.60873803,118770.0,118760.0,0.01308]
[1759370212129,1.2385155,118770.0,118760.0,0.01308]
[1759370212331,1.51648399,118770.0,118760.0,0.01308]
[1759370212626,1.6385155,118770.0,118760.0,0.01308]
[1759370212830,1.91648399,118770.0,118760.0,0.01308]
[1759370213232,1.9063805,118770.0,118760.0,0.01308]
[1759370214425,1.9063805,118770.0,118760.0,0.03527]
[1759370216530,1.1158205,118770.0,118760.0,0.1194325]
[1759370216731,1.9062605,118770.0,118760.0,0.39740099]
[1759370217131,1.62829201,118770.0,118760.0,0.39740099]
[1759370217331,1.5062605,118770.0,118760.0,0.39740099]
[1759370218437,1.5062205,118770.0,118760.0,0.39740099]
[1759370219531,1.5062205,118770.0,118760.0,0.1194325]
[1759370219732,1.5062205,118770.0,118760.0,0.39740099]
[1759370220338,0.003,118770.0,118760.0,1.43616948]
[1759370220638,1.15552399,118770.0,118760.0,1.17031139]
[1759370220938,0.36512399,118770.0,118760.0,1.17031139]
[1759370221132,0.36512399,118770.0,118760.0,0.61437441]
[1759370221331,1.51628399,118770.0,118760.0,0.03527]
[1759370221535,0.72592399,118770.0,118760.0,0.07343901]
[1759370221739,1.00389248,118770.0,118760.0,0.01308]
[1759370221935,1.51628399,118770.0,118760.0,0.01308]
[1759370222133,1.51628399,118770.0,118760.0,0.07343901]
[1759370222336,0.72592399,118770.0,118760.0,0.07343901]
[1759370222742,1.51624399,118770.0,118760.0,0.07343901]
[1759370222938,0.72592399,118770.0,118760.0,0.07343901]
[1759370223238,1.49245836,118770.0,118760.0,0.07343901]
[1759370223439,0.70213836,118770.0,118760.0,0.07343901]
[1759370223838,1.49245836,118770.0,118760.0,0.07343901]
[1759370224137,0.70213836,118770.0,118760.0,0.07343901]
[1759370224338,1.49245836,118770.0,118760.0,0.07343901]
[1759370224840,0.70213836,118770.0,118760.0,0.07343901]
[1759370225136,1.49241836,118770.0,118760.0,0.07343901]
[1759370225336,1.49241836,118770.0,118760.0,0.09562901]
[1759370225337,0.70213836,118770.0,118760.0,0.09562901]
[1759370225835,0.98010685,118770.0,118760.0,0.07343901]
[1759370226038,2.17038685,118770.0,118760.0,0.01308]
[1759370226939,0.0841625,118760.0,118750.0,0.01308]
[1759370227133,1.70043854,118760.0,118750.0,0.0049596]
[1759370227641,0.0841767,118740.0,118730.0,0.01308]
[1759370227838,2.21876214,118740.0,118730.0,0.03527]
[1759370228243,1.42852214,118740.0,118730.0,0.03527]
[1759370228444,1.94079365,118740.0,118730.0,0.03527]
[1759370228842,1.66282516,118740.0,118730.0,0.03527]
[1759370229048,2.21876214,118740.0,118730.0,0.05227]
[1759370229346,2.22376214,118740.0,118730.0,0.05227]
[1759370229946,2.22380214,118740.0,118730.0,0.05227]
[1759370230447,2.22376214,118740.0,118730.0,0.05227]
[1759370231249,1.94579365,118740.0,118730.0,0.05227]
[1759370231444,0.07180846,118740.0,118730.0,0.77522229]
[1759370231643,0.07180846,118740.0,118730.0,1.17522229]
[1759370231849,0.86204846,118740.0,118730.0,1.2355813]
[1759370232550,1.30702516,118740.0,118730.0,0.7905975]
[1759370232844,1.58499365,118740.0,118730.0,0.33023849]
[1759370233058,1.58499365,118740.0,118730.0,0.05227]
[1759370233246,1.57488755,118740.0,118730.0,0.33023849]
[1759370233739,1.57488755,118740.0,118730.0,0.05227]
[1759370233951,1.85285604,118740.0,118730.0,0.03008]
[1759370234952,1.85285604,118740.0,118730.0,0.05227]
[1759370239154,1.29691906,118740.0,118730.0,0.05227]
[1759370239851,1.85285604,118740.0,118730.0,0.05227]
[1759370242058,1.29691906,118740.0,118730.0,0.05227]
[1759370242252,1.85285604,118740.0,118730.0,0.03008]
[1759370243759,2.25285604,118740.0,118730.0,0.017]
[1759370245761,2.25285604,118740.0,118730.0,0.0306]
[1759370248356,1.97488755,118740.0,118730.0,0.0306]
[1759370248561,2.25285604,118740.0,118730.0,0.0306]
[1759370249660,2.25285604,118740.0,118730.0,0.017]
[1759370250760,2.53082453,118740.0,118730.0,0.017]
[1759370251268,0.0841838,118730.0,118720.0,0.01323]
[1759370251466,1.00092078,118730.0,118720.0,0.01323]
[1759370251962,0.72295229,118730.0,118720.0,0.01323]
[1759370252464,0.73195229,118730.0,118720.0,0.01323]
[1759370252867,1.00992078,118730.0,118720.0,0.01323]
[1759370253667,1.00992078,118730.0,118720.0,0.02523]
[1759370253668,1.00092078,118730.0,118720.0,0.02523]
[1759370254168,0.084198,118710.0,118700.0,0.01323]
[1759370254467,0.805798,118710.0,118700.0,0.03432]
[1759370254667,1.87364649,118710.0,118700.0,0.03432]
[1759370255270,1.89329775,118710.0,118700.0,0.1185251]
[1759370255469,1.12941775,118710.0,118700.0,0.1205251]
[1759370255660,1.64132926,118710.0,118700.0,0.1205251]
[1759370255865,1.91929775,118710.0,118700.0,0.1205251]
[1759370258665,1.64132926,118710.0,118700.0,0.1205251]
[1759370258968,1.91929775,118710.0,118700.0,0.1205251]
[1759370259770,1.64132926,118710.0,118700.0,0.1205251]
[1759370259972,1.91929775,118710.0,118700.0,0.1205251]
[1759370261372,1.64132926,118710.0,118700.0,0.1205251]
[1759370261571,1.91929775,118710.0,118700.0,0.1205251]
[1759370262468,1.91917775,118710.0,118700.0,0.1205251]
[1759370262664,1.64120926,118710.0,118700.0,0.39849359]
[1759370262868,1.91917775,118710.0,118700.0,0.39849359]
[1759370263674,1.12941775,118710.0,118700.0,0.39849359]
[1759370263875,1.91917775,118710.0,118700.0,0.39849359]
[1759370264876,1.91917775,118710.0,118700.0,0.1205251]
[1759370265070,1.91917775,118710.0,118700.0,0.39849359]
[1759370265970,1.91917775,118710.0,118700.0,1.88088863]
[1759370265971,0.01231227,118710.0,118700.0,1.88088863]
[1759370266278,0.81116312,118710.0,118700.0,1.8955884]
[1759370266473,0.79192441,118710.0,118700.0,1.61761991]
[1759370266975,0.00220441,118710.0,118700.0,1.61761991]
[1759370267176,0.00220441,118710.0,118700.0,1.8955884]
[1759370267377,1e-08,118710.0,118700.0,1.8955884]
[1759370267573,1e-08,118710.0,118700.0,1.92566569]
[1759370268983,1e-08,118710.0,118700.0,1.94506512]
[1759370269782,1e-08,118710.0,118700.0,1.92566569]
[1759370272186,1e-08,118710.0,118700.0,1.82052962]
[1759370274184,1e-08,118710.0,118700.0,1.35737157]
[1759370275986,0.49783047,118730.0,118700.0,1.35737157]
[1759370276188,0.48772488,118730.0,118720.0,0.910119]
[1759370276585,0.93270868,118730.0,118720.0,0.1181909]
[1759370276788,1.3034561,118730.0,118720.0,0.1181909]
[1759370277485,1.7034561,118730.0,118720.0,0.034]
[1759370277679,1.7034561,118730.0,118720.0,0.03261]
[1759370278083,1.7034561,118730.0,118720.0,0.01261]
[1759370278290,1.7034561,118730.0,118720.0,0.02161]
[1759370278791,1.7034561,118730.0,118720.0,0.01261]
[1759370279495,0.45378868,118730.0,118720.0,0.48893832]
[1759370279686,1.25510868,118730.0,118720.0,0.48893832]
[1759370279885,1.25510868,118730.0,118720.0,0.1181909]
[1759370282692,0.02080488,118730.0,118720.0,0.48893832]
[1759370283088,0.81008488,118730.0,118720.0,0.48893832]
[1759370283298,0.81008488,118730.0,118720.0,0.549319]
[1759370283888,0.79808488,118730.0,118720.0,0.561319]
[1759370284790,0.79808488,118730.0,118720.0,0.549319]
[1759370284984,0.80608488,118730.0,118720.0,0.549319]
[1759370285696,0.80604488,118730.0,118720.0,0.549319]
[1759370286094,0.78225284,118730.0,118720.0,0.549319]
[1759370286597,0.50168266,118740.0,118730.0,0.1181838]
[1759370286796,1.29088266,118740.0,118730.0,0.1181838]
[1759370287797,1.30988096,118740.0,118730.0,0.1181838]
[1759370287987,1.30988096,118740.0,118730.0,0.1311838]
[1759370288298,1.30988096,118740.0,118730.0,0.1181838]
[1759370288494,1.31788096,118740.0,118730.0,0.1181838]
[1759370288792,1.68862838,118740.0,118730.0,0.01261]
[1759370289497,1.68862838,118740.0,118730.0,0.0967938]
[1759370289698,1.68862838,118740.0,118730.0,0.1181838]
[1759370291198,1.31788096,118740.0,118730.0,0.1181838]
[1759370291394,0.3877983,118740.0,118730.0,0.48893122]
[1759370291703,1.1548383,118740.0,118730.0,1.04191136]
[1759370292202,0.7940383,118740.0,118730.0,0.98153068]
[1759370293398,0.7940383,118740.0,118730.0,1.04197162]
[1759370294305,0.7940383,118740.0,118730.0,1.04198066]
[1759370294599,0.0269983,118740.0,118730.0,1.04198066]
[1759370294807,0.8159583,118740.0,118730.0,0.67123324]
[1759370295010,0.8159583,118740.0,118730.0,1.04198066]
[1759370295207,0.8159583,118740.0,118730.0,0.98153068]
[1759370295502,0.8159583,118740.0,118730.0,0.034]
[1759370295503,1.63168242,118740.0,118730.0,0.034]
[1759370295695,1.54750572,118740.0,118730.0,0.034]
[1759370295894,0.8159583,118740.0,118730.0,0.1181838]
[1759370296103,0.8159583,118740.0,118730.0,0.48893122]
[1759370296606,1.260935,118740.0,118730.0,0.46521177]
[1759370296801,1.260935,118740.0,118730.0,0.09446435]
[1759370298004,1.260935,118740.0,118730.0,0.17864815]
[1759370298610,1.260935,118740.0,118730.0,0.54939557]
[1759370299008,1.260775,118740.0,118730.0,0.54939557]
[1759370299307,1.1765983,118740.0,118730.0,0.54939557]
[1759370299601,0.8056927,118740.0,118730.0,0.54939557]
[1759370299807,0.8056527,118740.0,118730.0,0.54939557]
[1759370300007,0.8056527,118740.0,118730.0,0.84973122]
[1759370301010,0.79196854,118740.0,118730.0,0.84973122]
[1759370301603,0.79196854,118740.0,118730.0,0.4789838]
[1759370301803,0.79196854,118740.0,118730.0,0.84973122]
[1759370302411,0.87614524,118740.0,118730.0,0.84973122]
[1759370303111,0.89347405,118740.0,118730.0,0.84973122]
[1759370303305,1.25427405,118740.0,118730.0,0.40474742]
[1759370303511,1.25427405,118740.0,118730.0,0.4652114]
[1759370303711,1.25427405,118740.0,118730.0,0.5493952]
[1759370303914,1.25427405,118740.0,118730.0,0.17864778]
[1759370304112,1.25427405,118740.0,118730.0,0.09446398]
[1759370305013,1.25427405,118740.0,118730.0,0.17864778]
[1759370306314,1.25427405,118740.0,118730.0,0.09446398]
[1759370306908,1.25427405,118740.0,118730.0,0.17864778]